[Event "*** SCC Grand Prix: Titled Tuesday Blitz"]
[Site "Chess.com"]
[Date "2020.08.04"]
[Round "5"]
[White "abykhovsky"]
[Black "Azerichess"]
[Result "1-0"]
[WhiteElo "2774"]
[BlackElo "2991"]
[TimeControl "180+1"]
[EndTime "14:40:51 PDT"]
[Termination "abykhovsky won by resignation"]

1. d4 {[%clk 0:03:00.9]} 1... Nf6 {[%clk 0:02:58.7]} 2. Nf3 {[%clk 0:03:00.4]}
2... g6 {[%clk 0:02:57.6]} 3. c4 {[%clk 0:02:59.4]} 3... Bg7 {[%clk 0:02:57.5]}
4. Nc3 {[%clk 0:03:00]} 4... d5 {[%clk 0:02:57.6]} 5. Bg5 {[%clk 0:03:00]} 5...
Ne4 {[%clk 0:02:55.1]} 6. cxd5 {[%clk 0:03:00.2]} 6... Nxg5 {[%clk 0:02:54.8]}
7. Nxg5 {[%clk 0:03:01.1]} 7... e6 {[%clk 0:02:54.6]} 8. Nf3 {[%clk 0:03:01.6]}
8... exd5 {[%clk 0:02:54.5]} 9. e3 {[%clk 0:03:02.5]} 9... O-O {[%clk
0:02:54.8]} 10. b4 {[%clk 0:03:02.5]} 10... c6 {[%clk 0:02:54]} 11. Qb3 {[%clk
0:03:02.5]} 11... Qd6 {[%clk 0:02:51.7]} 12. Be2 {[%clk 0:03:02.6]} 12... Be6
{[%clk 0:01:20.3]} 13. O-O {[%clk 0:03:01.3]} 13... h6 {[%clk 0:01:20.4]} 14.
Rab1 {[%clk 0:02:54.5]} 14... Nd7 {[%clk 0:01:20.6]} 15. Rfc1 {[%clk 0:02:54.7]}
15... a6 {[%clk 0:01:18.9]} 16. Na4 {[%clk 0:02:50.1]} 16... b5 {[%clk
0:01:17.3]} 17. Nc5 {[%clk 0:02:48.4]} 17... Nb6 {[%clk 0:01:17.8]} 18. a4
{[%clk 0:02:44.1]} 18... Nc4 {[%clk 0:01:17.7]} 19. Ra1 {[%clk 0:02:44.4]} 19...
g5 {[%clk 0:01:16.8]} 20. Ra2 {[%clk 0:02:43.9]} 20... Bg4 {[%clk 0:01:08.3]}
21. Rca1 {[%clk 0:02:42.4]} 21... Rae8 {[%clk 0:01:07.3]} 22. Nxa6 {[%clk
0:02:38.1]} 22... f5 {[%clk 0:01:06.1]} 23. axb5 {[%clk 0:02:17.4]} 23... cxb5
{[%clk 0:01:07]} 24. Nc5 {[%clk 0:02:17.3]} 24... f4 {[%clk 0:01:07.5]} 25. Ra6
{[%clk 0:01:30]} 25... Qd8 {[%clk 0:01:06.9]} 26. e4 {[%clk 0:01:28.8]} 26...
dxe4 {[%clk 0:00:38.6]} 27. Bxc4+ {[%clk 0:01:28.1]} 27... bxc4 {[%clk
0:00:39.5]} 28. Qxc4+ {[%clk 0:01:29]} 28... Kh7 {[%clk 0:00:33.9]} 29. Ne5
{[%clk 0:01:29.3]} 29... Bf5 {[%clk 0:00:33.7]} 30. Ra7 {[%clk 0:01:20.4]} 30...
Re7 {[%clk 0:00:29.6]} 31. h3 {[%clk 0:01:08.6]} 31... e3 {[%clk 0:00:28.9]} 32.
fxe3 {[%clk 0:00:55.8]} 32... fxe3 {[%clk 0:00:28.6]} 33. g4 {[%clk 0:00:54.2]}
33... Rxa7 {[%clk 0:00:20.5]} 34. Rxa7 {[%clk 0:00:53.7]} 34... e2 {[%clk
0:00:20.1]} 35. Qxe2 {[%clk 0:00:48.9]} 35... Qxd4+ {[%clk 0:00:19.1]} 36. Kg2
{[%clk 0:00:48.3]} 36... Re8 {[%clk 0:00:09.9]} 37. gxf5 {[%clk 0:00:42.7]}
37... Rxe5 {[%clk 0:00:09.8]} 38. Qd3 {[%clk 0:00:19.1]} 38... Qxd3 {[%clk
0:00:08.6]} 39. Nxd3 {[%clk 0:00:20]} 39... Rxf5 {[%clk 0:00:09.2]} 40. Nc5
{[%clk 0:00:20.2]} 40... Kg6 {[%clk 0:00:08.2]} 41. Rc7 {[%clk 0:00:20.3]} 41...
Bd4 {[%clk 0:00:07.2]} 42. Ne6 {[%clk 0:00:19.7]} 42... Be3 {[%clk 0:00:05.3]}
43. Rc3 {[%clk 0:00:19.3]} 43... Re5 {[%clk 0:00:04.2]} 44. Nc5 {[%clk
0:00:19.1]} 44... Bd4 {[%clk 0:00:03.9]} 45. Rc4 {[%clk 0:00:18.9]} 45... Be3
{[%clk 0:00:04]} 46. Kf3 {[%clk 0:00:19.2]} 46... Re4 {[%clk 0:00:04.2]} 47.
Nxe4 {[%clk 0:00:19.3]} 1-0

[Event "*** SCC Grand Prix: Titled Tuesday Blitz"]
[Site "Chess.com"]
[Date "2020.08.04"]
[Round "5"]
[White "BlackBoarder"]
[Black "Kaua18"]
[Result "1-0"]
[WhiteElo "2550"]
[BlackElo "2282"]
[TimeControl "180+1"]
[EndTime "14:40:59 PDT"]
[Termination "BlackBoarder won by checkmate"]

1. e4 {[%clk 0:03:00.9]} 1... c5 {[%clk 0:02:59.9]} 2. Nf3 {[%clk 0:03:00.2]}
2... Nc6 {[%clk 0:03:00.3]} 3. Bb5 {[%clk 0:02:58.6]} 3... e6 {[%clk 0:02:59.4]}
4. Bxc6 {[%clk 0:02:58.5]} 4... bxc6 {[%clk 0:03:00.3]} 5. d3 {[%clk 0:02:57.8]}
5... Ne7 {[%clk 0:02:59.3]} 6. O-O {[%clk 0:02:55.8]} 6... Ng6 {[%clk
0:02:59.3]} 7. c3 {[%clk 0:02:53.4]} 7... Be7 {[%clk 0:02:54.7]} 8. Re1 {[%clk
0:02:46.1]} 8... O-O {[%clk 0:02:54.7]} 9. h3 {[%clk 0:02:41]} 9... d6 {[%clk
0:02:52.9]} 10. d4 {[%clk 0:02:38]} 10... cxd4 {[%clk 0:02:46.5]} 11. cxd4
{[%clk 0:02:37.4]} 11... c5 {[%clk 0:02:46.4]} 12. dxc5 {[%clk 0:02:15.2]} 12...
dxc5 {[%clk 0:02:47.3]} 13. Nc3 {[%clk 0:02:14.9]} 13... Rb8 {[%clk 0:02:46.8]}
14. Qc2 {[%clk 0:02:10.9]} 14... c4 {[%clk 0:02:34.8]} 15. Be3 {[%clk
0:01:35.9]} 15... Qc7 {[%clk 0:02:31.1]} 16. Rac1 {[%clk 0:01:27.5]} 16... Bb4
{[%clk 0:02:12.2]} 17. Red1 {[%clk 0:01:16.6]} 17... Bxc3 {[%clk 0:01:45.5]} 18.
Qxc3 {[%clk 0:01:15.1]} 18... Ba6 {[%clk 0:01:43.6]} 19. Qa3 {[%clk 0:01:00.2]}
19... Qb7 {[%clk 0:01:34.9]} 20. Rd6 {[%clk 0:00:45.9]} 20... Bb5 {[%clk
0:01:24.5]} 21. e5 {[%clk 0:00:35.6]} 21... a6 {[%clk 0:01:21.4]} 22. Bc5 {[%clk
0:00:29.4]} 22... Rfc8 {[%clk 0:01:20.7]} 23. Rb6 {[%clk 0:00:27.5]} 23... Qd5
{[%clk 0:01:08.1]} 24. Rxb8 {[%clk 0:00:27]} 24... Rxb8 {[%clk 0:01:09]} 25. Bd6
{[%clk 0:00:27.3]} 25... Rc8 {[%clk 0:01:09.2]} 26. Qc3 {[%clk 0:00:24.1]} 26...
Nf4 {[%clk 0:01:07.6]} 27. Qe3 {[%clk 0:00:21.1]} 27... Nd3 {[%clk 0:00:54.9]}
28. Rc2 {[%clk 0:00:20.1]} 28... h6 {[%clk 0:00:52.6]} 29. Qd4 {[%clk
0:00:18.3]} 29... Qb7 {[%clk 0:00:40.4]} 30. Qc3 {[%clk 0:00:16.4]} 30... Rd8
{[%clk 0:00:21.7]} 31. Nd4 {[%clk 0:00:15.2]} 31... Qe4 {[%clk 0:00:18.3]} 32.
Nf3 {[%clk 0:00:13.8]} 32... f6 {[%clk 0:00:13]} 33. Be7 {[%clk 0:00:10.3]}
33... Re8 {[%clk 0:00:11.3]} 34. exf6 {[%clk 0:00:10.7]} 34... Nf4 {[%clk
0:00:11.5]} 35. Ba3 {[%clk 0:00:07]} 35... Ne2+ {[%clk 0:00:11.3]} 36. Rxe2
{[%clk 0:00:06.8]} 36... Qxe2 {[%clk 0:00:12.2]} 37. fxg7 {[%clk 0:00:07]} 37...
Qd1+ {[%clk 0:00:12.4]} 38. Kh2 {[%clk 0:00:06.9]} 38... Qd5 {[%clk 0:00:12.2]}
39. Qf6 {[%clk 0:00:06.4]} 39... Bc6 {[%clk 0:00:09.2]} 40. Qf8+ {[%clk
0:00:06.3]} 40... Kh7 {[%clk 0:00:08.1]} 41. g8=Q# {[%clk 0:00:05.1]} 1-0

[Event "*** SCC Grand Prix: Titled Tuesday Blitz"]
[Site "Chess.com"]
[Date "2020.08.04"]
[Round "5"]
[White "Koksik_13"]
[Black "kuban1991"]
[Result "0-1"]
[WhiteElo "2611"]
[BlackElo "2765"]
[TimeControl "180+1"]
[EndTime "14:41:01 PDT"]
[Termination "kuban1991 won by resignation"]

1. e4 {[%clk 0:02:58.9]} 1... e6 {[%clk 0:02:59.6]} 2. d4 {[%clk 0:02:58.8]}
2... d5 {[%clk 0:02:59.9]} 3. Nc3 {[%clk 0:02:57.1]} 3... Bb4 {[%clk 0:02:59.5]}
4. exd5 {[%clk 0:02:56.3]} 4... exd5 {[%clk 0:03:00.4]} 5. Bd3 {[%clk
0:02:56.9]} 5... Ne7 {[%clk 0:03:00.7]} 6. Qf3 {[%clk 0:02:55.3]} 6... Nbc6
{[%clk 0:03:00.7]} 7. Ne2 {[%clk 0:02:55.3]} 7... Be6 {[%clk 0:03:00.7]} 8. h3
{[%clk 0:02:55.2]} 8... Qd7 {[%clk 0:03:00.6]} 9. Bf4 {[%clk 0:02:54.8]} 9...
O-O-O {[%clk 0:02:58.7]} 10. O-O-O {[%clk 0:02:54.6]} 10... Bf5 {[%clk
0:02:55.2]} 11. g4 {[%clk 0:02:41.7]} 11... Bxd3 {[%clk 0:02:53.3]} 12. Qxd3
{[%clk 0:02:40.7]} 12... h5 {[%clk 0:02:51.2]} 13. Qf3 {[%clk 0:02:35.4]} 13...
hxg4 {[%clk 0:02:42]} 14. hxg4 {[%clk 0:02:36.3]} 14... Rxh1 {[%clk 0:02:42.9]}
15. Rxh1 {[%clk 0:02:36.1]} 15... Bxc3 {[%clk 0:02:43.2]} 16. Nxc3 {[%clk
0:02:21]} 16... Nxd4 {[%clk 0:02:37.3]} 17. Qd3 {[%clk 0:02:20.7]} 17... Nec6
{[%clk 0:02:33.5]} 18. Bg3 {[%clk 0:02:10.9]} 18... Qxg4 {[%clk 0:02:26.1]} 19.
Rh4 {[%clk 0:02:10.9]} 19... Qg5+ {[%clk 0:02:15.4]} 20. Kb1 {[%clk 0:02:00.2]}
20... Nf5 {[%clk 0:01:55.7]} 21. Rf4 {[%clk 0:01:41.6]} 21... Nxg3 {[%clk
0:01:47.9]} 22. fxg3 {[%clk 0:01:42.5]} 22... f6 {[%clk 0:01:29.8]} 23. a3
{[%clk 0:01:42.3]} 23... d4 {[%clk 0:01:21.5]} 24. Ne4 {[%clk 0:01:35.8]} 24...
Qd5 {[%clk 0:01:21.1]} 25. Nd2 {[%clk 0:01:20.3]} 25... Ne5 {[%clk 0:01:17.7]}
26. Qf5+ {[%clk 0:01:14.2]} 26... Qd7 {[%clk 0:01:14.3]} 27. Qe4 {[%clk
0:00:58.3]} 27... d3 {[%clk 0:01:12.4]} 28. c3 {[%clk 0:00:56.7]} 28... Qc6
{[%clk 0:01:07.8]} 29. Qb4 {[%clk 0:00:47.1]} 29... Qh1+ {[%clk 0:00:58.5]} 30.
Ka2 {[%clk 0:00:46.4]} 30... Qh2 {[%clk 0:00:44.6]} 31. Nb3 {[%clk 0:00:26]}
31... d2 {[%clk 0:00:40.2]} 32. Nc5 {[%clk 0:00:25]} 32... Qg2 {[%clk
0:00:23.8]} 33. Re4 {[%clk 0:00:22.6]} 33... b6 {[%clk 0:00:22.3]} 34. Qa4
{[%clk 0:00:10.3]} 34... bxc5 {[%clk 0:00:18.2]} 35. Qa6+ {[%clk 0:00:08.1]}
35... Kd7 {[%clk 0:00:18.6]} 36. Qa4+ {[%clk 0:00:05.4]} 36... Ke7 {[%clk
0:00:16]} 37. Qc6 {[%clk 0:00:06]} 37... Qxe4 {[%clk 0:00:15.3]} 0-1

[Event "*** SCC Grand Prix: Titled Tuesday Blitz"]
[Site "Chess.com"]
[Date "2020.08.04"]
[Round "5"]
[White "guillembaches"]
[Black "davidkalashian"]
[Result "1-0"]
[WhiteElo "2425"]
[BlackElo "2564"]
[TimeControl "180+1"]
[EndTime "14:41:02 PDT"]
[Termination "guillembaches won on time"]

1. e4 {[%clk 0:03:00.9]} 1... c5 {[%clk 0:02:59.3]} 2. Nf3 {[%clk 0:03:01]} 2...
a6 {[%clk 0:02:59.2]} 3. c4 {[%clk 0:02:59.4]} 3... e6 {[%clk 0:02:57.3]} 4. Nc3
{[%clk 0:02:57.2]} 4... Nc6 {[%clk 0:02:55.4]} 5. Be2 {[%clk 0:02:54.8]} 5...
Nf6 {[%clk 0:02:51.2]} 6. O-O {[%clk 0:02:53]} 6... d6 {[%clk 0:02:46]} 7. d4
{[%clk 0:02:50.4]} 7... cxd4 {[%clk 0:02:46.9]} 8. Nxd4 {[%clk 0:02:51.1]} 8...
Be7 {[%clk 0:02:45.4]} 9. Be3 {[%clk 0:02:51.1]} 9... O-O {[%clk 0:02:45.4]} 10.
f3 {[%clk 0:02:51.3]} 10... Bd7 {[%clk 0:02:39.5]} 11. Qd2 {[%clk 0:02:51.2]}
11... Rc8 {[%clk 0:02:39.7]} 12. Rfd1 {[%clk 0:02:49.5]} 12... Qc7 {[%clk
0:02:33.8]} 13. Rac1 {[%clk 0:02:49]} 13... Nxd4 {[%clk 0:02:32.6]} 14. Bxd4
{[%clk 0:02:43.9]} 14... Qb8 {[%clk 0:02:26.1]} 15. a4 {[%clk 0:02:34.4]} 15...
e5 {[%clk 0:02:16.2]} 16. Bf2 {[%clk 0:02:30.2]} 16... Be6 {[%clk 0:02:14.2]}
17. Nd5 {[%clk 0:02:25.6]} 17... Nxd5 {[%clk 0:02:07.8]} 18. exd5 {[%clk
0:02:06.3]} 18... Bd7 {[%clk 0:02:05.4]} 19. a5 {[%clk 0:02:05.5]} 19... Bd8
{[%clk 0:01:36.5]} 20. b4 {[%clk 0:01:59.7]} 20... h6 {[%clk 0:01:28.4]} 21. c5
{[%clk 0:01:54.8]} 21... Ba4 {[%clk 0:01:16.4]} 22. Re1 {[%clk 0:01:50.1]} 22...
Be7 {[%clk 0:01:03.2]} 23. c6 {[%clk 0:01:29.3]} 23... bxc6 {[%clk 0:00:58.4]}
24. Bxa6 {[%clk 0:01:23.1]} 24... Rc7 {[%clk 0:00:58.7]} 25. dxc6 {[%clk
0:01:14.3]} 25... Rxc6 {[%clk 0:00:53.5]} 26. Rxc6 {[%clk 0:01:02]} 26... Bxc6
{[%clk 0:00:54.4]} 27. b5 {[%clk 0:00:59.2]} 27... Bxb5 {[%clk 0:00:23.8]} 28.
Rb1 {[%clk 0:00:58.8]} 28... Bxa6 {[%clk 0:00:21.6]} 29. Rxb8 {[%clk 0:00:58.5]}
29... Rxb8 {[%clk 0:00:22.5]} 30. Bb6 {[%clk 0:00:54.3]} 30... Rc8 {[%clk
0:00:21.7]} 31. h3 {[%clk 0:00:40.9]} 31... Bg5 {[%clk 0:00:19.7]} 32. Qxd6
{[%clk 0:00:36.7]} 32... Rc1+ {[%clk 0:00:19.5]} 33. Kh2 {[%clk 0:00:22]} 33...
Bf4+ {[%clk 0:00:13.2]} 34. g3 {[%clk 0:00:21.7]} 34... Rc2+ {[%clk 0:00:13.6]}
35. Kg1 {[%clk 0:00:21.8]} 35... Bxg3 {[%clk 0:00:11.3]} 36. Qd8+ {[%clk
0:00:20.1]} 36... Kh7 {[%clk 0:00:10.4]} 37. Qa8 {[%clk 0:00:20.1]} 37... Bc4
{[%clk 0:00:09.3]} 38. a6 {[%clk 0:00:19.1]} 38... Bd3 {[%clk 0:00:05.5]} 39. a7
{[%clk 0:00:17.7]} 39... Bh2+ {[%clk 0:00:03.8]} 40. Kh1 {[%clk 0:00:16.8]}
40... Bf4 {[%clk 0:00:04.2]} 41. Qd5 {[%clk 0:00:11.9]} 41... Rc1+ {[%clk
0:00:03.3]} 42. Kg2 {[%clk 0:00:12.1]} 42... Rc2+ {[%clk 0:00:03.5]} 43. Bf2
{[%clk 0:00:12]} 43... Bf5 {[%clk 0:00:03.4]} 44. a8=Q {[%clk 0:00:11.7]} 44...
Be3 {[%clk 0:00:03.8]} 45. Qxe5 {[%clk 0:00:10.6]} 45... Rxf2+ {[%clk
0:00:01.4]} 46. Kg3 {[%clk 0:00:10.6]} 1-0

[Event "*** SCC Grand Prix: Titled Tuesday Blitz"]
[Site "Chess.com"]
[Date "2020.08.04"]
[Round "5"]
[White "peixe64"]
[Black "realmadridtv"]
[Result "1/2-1/2"]
[WhiteElo "2326"]
[BlackElo "2477"]
[TimeControl "180+1"]
[EndTime "14:41:06 PDT"]
[Termination "Game drawn - insufficient material"]

1. e4 {[%clk 0:03:00.9]} 1... e5 {[%clk 0:02:59.8]} 2. Nf3 {[%clk 0:03:01.2]}
2... Nc6 {[%clk 0:03:00.1]} 3. Bb5 {[%clk 0:03:00.3]} 3... a6 {[%clk 0:03:00.1]}
4. Ba4 {[%clk 0:03:00.1]} 4... Nf6 {[%clk 0:03:00.3]} 5. O-O {[%clk 0:03:00.4]}
5... Nxe4 {[%clk 0:02:59]} 6. d4 {[%clk 0:02:58.7]} 6... Be7 {[%clk 0:02:59.4]}
7. Re1 {[%clk 0:02:39]} 7... b5 {[%clk 0:02:58.5]} 8. Bb3 {[%clk 0:02:38.9]}
8... d5 {[%clk 0:02:58.4]} 9. dxe5 {[%clk 0:02:34.2]} 9... Be6 {[%clk
0:02:58.8]} 10. c3 {[%clk 0:02:29.5]} 10... O-O {[%clk 0:02:57.7]} 11. Nbd2
{[%clk 0:02:25.3]} 11... Nc5 {[%clk 0:02:57.9]} 12. Bc2 {[%clk 0:02:25.5]} 12...
d4 {[%clk 0:02:58.5]} 13. Nf1 {[%clk 0:02:15.3]} 13... dxc3 {[%clk 0:02:56]} 14.
bxc3 {[%clk 0:02:13.9]} 14... Qxd1 {[%clk 0:02:55]} 15. Rxd1 {[%clk 0:02:13.1]}
15... Rad8 {[%clk 0:02:54.7]} 16. Be3 {[%clk 0:02:05.6]} 16... Bg4 {[%clk
0:02:51.8]} 17. Rxd8 {[%clk 0:01:45.6]} 17... Rxd8 {[%clk 0:02:50.4]} 18. N1d2
{[%clk 0:01:29.1]} 18... Nd7 {[%clk 0:02:32.2]} 19. Bd4 {[%clk 0:01:09.3]} 19...
Ba3 {[%clk 0:02:27]} 20. h3 {[%clk 0:00:56.8]} 20... Be6 {[%clk 0:02:19.8]} 21.
Re1 {[%clk 0:00:49.4]} 21... Nf8 {[%clk 0:02:10.5]} 22. Nb3 {[%clk 0:00:43.4]}
22... a5 {[%clk 0:02:02.8]} 23. Bc5 {[%clk 0:00:41.2]} 23... Bxb3 {[%clk
0:01:51.7]} 24. Bxf8 {[%clk 0:00:31.4]} 24... Bxc2 {[%clk 0:01:43.3]} 25. Bxa3
{[%clk 0:00:29.3]} 25... Rd1 {[%clk 0:01:38.8]} 26. Rxd1 {[%clk 0:00:28]} 26...
Bxd1 {[%clk 0:01:39.7]} 27. Nd4 {[%clk 0:00:26]} 27... Nxe5 {[%clk 0:01:26.9]}
28. Nxb5 {[%clk 0:00:23]} 28... c6 {[%clk 0:01:24.8]} 29. Nd4 {[%clk 0:00:20.7]}
29... f6 {[%clk 0:01:15]} 30. Bd6 {[%clk 0:00:18.2]} 30... Nc4 {[%clk
0:01:10.8]} 31. Bc7 {[%clk 0:00:18.3]} 31... a4 {[%clk 0:01:08.8]} 32. Nxc6
{[%clk 0:00:17]} 32... Bb3 {[%clk 0:00:56.6]} 33. Na5 {[%clk 0:00:16.5]} 33...
Nxa5 {[%clk 0:00:46.7]} 34. Bxa5 {[%clk 0:00:17.4]} 34... Bxa2 {[%clk 0:00:45]}
35. Bb4 {[%clk 0:00:17.7]} 35... Kf7 {[%clk 0:00:43.1]} 36. Kf1 {[%clk
0:00:17.7]} 36... Ke6 {[%clk 0:00:41.6]} 37. Ke1 {[%clk 0:00:18.2]} 37... Kd5
{[%clk 0:00:41.6]} 38. Kd2 {[%clk 0:00:18.3]} 38... Kc4 {[%clk 0:00:37.6]} 39.
Kc2 {[%clk 0:00:18.7]} 39... Bb3+ {[%clk 0:00:29.1]} 40. Kb2 {[%clk 0:00:19.1]}
40... Kd3 {[%clk 0:00:27.8]} 41. g3 {[%clk 0:00:17.9]} 41... Ke2 {[%clk
0:00:27.1]} 42. Bc5 {[%clk 0:00:17.3]} 42... Kf3 {[%clk 0:00:24.2]} 43. h4
{[%clk 0:00:17.3]} 43... g5 {[%clk 0:00:22.9]} 44. hxg5 {[%clk 0:00:16.7]} 44...
fxg5 {[%clk 0:00:23.4]} 45. Ka3 {[%clk 0:00:17.5]} 45... h5 {[%clk 0:00:21.7]}
46. Be7 {[%clk 0:00:15.3]} 46... Kg4 {[%clk 0:00:21.5]} 47. Kb4 {[%clk
0:00:13.1]} 47... Kf5 {[%clk 0:00:12.5]} 48. Bd8 {[%clk 0:00:12.9]} 48... Kg4
{[%clk 0:00:12.5]} 49. Be7 {[%clk 0:00:13]} 49... h4 {[%clk 0:00:11.9]} 50. gxh4
{[%clk 0:00:13.3]} 50... gxh4 {[%clk 0:00:12.6]} 51. Bxh4 {[%clk 0:00:13.7]}
51... Kxh4 {[%clk 0:00:13.1]} 52. c4 {[%clk 0:00:13.4]} 52... Bxc4 {[%clk
0:00:10.6]} 53. Kxa4 {[%clk 0:00:13.2]} 53... Kg4 {[%clk 0:00:10.2]} 54. Kb4
{[%clk 0:00:13.7]} 54... Kf3 {[%clk 0:00:09.8]} 55. Kxc4 {[%clk 0:00:14.2]}
55... Kxf2 {[%clk 0:00:10.3]} 1/2-1/2

[Event "*** SCC Grand Prix: Titled Tuesday Blitz"]
[Site "Chess.com"]
[Date "2020.08.04"]
[Round "5"]
[White "Zurability"]
[Black "Fandorine"]
[Result "0-1"]
[WhiteElo "2682"]
[BlackElo "2900"]
[TimeControl "180+1"]
[EndTime "14:41:08 PDT"]
[Termination "Fandorine won by resignation"]

1. c4 {[%clk 0:03:00.9]} 1... g6 {[%clk 0:02:59.5]} 2. e4 {[%clk 0:02:59.4]}
2... Bg7 {[%clk 0:02:58.7]} 3. d4 {[%clk 0:02:59.9]} 3... d6 {[%clk 0:02:59]} 4.
Nc3 {[%clk 0:03:00.2]} 4... Nf6 {[%clk 0:02:59.6]} 5. Nf3 {[%clk 0:03:00.5]}
5... O-O {[%clk 0:03:00.2]} 6. Be2 {[%clk 0:02:58.5]} 6... Na6 {[%clk
0:03:00.4]} 7. Bf4 {[%clk 0:02:52.7]} 7... Bg4 {[%clk 0:02:57]} 8. e5 {[%clk
0:02:38.1]} 8... Nd7 {[%clk 0:02:54.6]} 9. exd6 {[%clk 0:02:32.1]} 9... exd6
{[%clk 0:02:55.5]} 10. O-O {[%clk 0:02:29.9]} 10... Nf6 {[%clk 0:02:49.5]} 11.
h3 {[%clk 0:02:27.6]} 11... Bd7 {[%clk 0:02:48.5]} 12. a3 {[%clk 0:02:22.8]}
12... Re8 {[%clk 0:02:48.5]} 13. Bd3 {[%clk 0:02:18.5]} 13... Nb8 {[%clk
0:02:48.8]} 14. d5 {[%clk 0:02:13.9]} 14... a5 {[%clk 0:02:43.9]} 15. Rc1 {[%clk
0:02:04.6]} 15... Na6 {[%clk 0:02:43.3]} 16. b3 {[%clk 0:01:58.8]} 16... Nc5
{[%clk 0:02:38.6]} 17. Bc2 {[%clk 0:01:45.9]} 17... Nfe4 {[%clk 0:02:38.5]} 18.
Nxe4 {[%clk 0:01:40]} 18... Nxe4 {[%clk 0:02:39.4]} 19. Re1 {[%clk 0:01:38.4]}
19... Qf6 {[%clk 0:02:30.7]} 20. Be3 {[%clk 0:01:25.6]} 20... Nc5 {[%clk
0:02:30.8]} 21. b4 {[%clk 0:01:09.7]} 21... axb4 {[%clk 0:02:30.2]} 22. axb4
{[%clk 0:01:10.6]} 22... Na6 {[%clk 0:02:30.8]} 23. Bd4 {[%clk 0:01:04.6]} 23...
Qf4 {[%clk 0:01:46.6]} 24. Rxe8+ {[%clk 0:00:42.6]} 24... Rxe8 {[%clk
0:01:47.5]} 25. Rb1 {[%clk 0:00:40.3]} 25... h5 {[%clk 0:00:55]} 26. g3 {[%clk
0:00:22.1]} 26... Qh6 {[%clk 0:00:53.3]} 27. Kg2 {[%clk 0:00:21.4]} 27... Qh8
{[%clk 0:00:47.2]} 28. Qd2 {[%clk 0:00:16.1]} 28... Bxd4 {[%clk 0:00:39.7]} 29.
Nxd4 {[%clk 0:00:17]} 29... Qf6 {[%clk 0:00:40]} 30. h4 {[%clk 0:00:13.2]} 30...
Re5 {[%clk 0:00:38.2]} 31. Rb3 {[%clk 0:00:07.2]} 31... Bg4 {[%clk 0:00:31.9]}
32. Bb1 {[%clk 0:00:05.4]} 32... Qe7 {[%clk 0:00:26.8]} 33. Bc2 {[%clk
0:00:05.2]} 33... Nb8 {[%clk 0:00:23.9]} 34. b5 {[%clk 0:00:03.7]} 34... Nd7
{[%clk 0:00:23.7]} 35. f3 {[%clk 0:00:03.2]} 35... Nc5 {[%clk 0:00:22.6]} 36.
fxg4 {[%clk 0:00:02.6]} 36... Nxb3 {[%clk 0:00:22.2]} 37. Bxb3 {[%clk
0:00:03.5]} 37... hxg4 {[%clk 0:00:22.6]} 38. Bd1 {[%clk 0:00:04]} 38... Re4
{[%clk 0:00:19.8]} 39. Qd3 {[%clk 0:00:02.3]} 39... Re3 {[%clk 0:00:13.9]} 40.
Qd2 {[%clk 0:00:02.1]} 40... Qe5 {[%clk 0:00:11.7]} 41. Ne2 {[%clk 0:00:02.2]}
41... Re4 {[%clk 0:00:10.7]} 42. Qd3 {[%clk 0:00:01.8]} 42... Re3 {[%clk
0:00:08.7]} 43. Qd2 {[%clk 0:00:02.4]} 43... Qe4+ {[%clk 0:00:09.2]} 44. Kg1
{[%clk 0:00:03]} 44... Rd3 {[%clk 0:00:09.2]} 45. Qf4 {[%clk 0:00:02.9]} 45...
Rxd1+ {[%clk 0:00:08.8]} 46. Kf2 {[%clk 0:00:02.9]} 46... Qxf4+ {[%clk
0:00:08.9]} 47. Nxf4 {[%clk 0:00:03.8]} 47... Rc1 {[%clk 0:00:05.7]} 48. b6
{[%clk 0:00:02.9]} 48... cxb6 {[%clk 0:00:05.6]} 49. Ke3 {[%clk 0:00:02.3]}
49... Rxc4 {[%clk 0:00:06]} 50. Nd3 {[%clk 0:00:01.3]} 50... b5 {[%clk
0:00:05.9]} 0-1